Cogmind - Beta 15 @@@ ROGUE MODE // 2025.08.29 @ 14:15:14 Player: Reflectatory Result: Destroyed by ET-R8A(R) with Subdweller Laser Performance ------------- Evolutions (0) 0 Regions Visited (3) 600 Robots Destroyed (4) 20 Value Destroyed (101) 101 Prototype IDs (0) 0 Alien Tech Used (0) 0 Bonus (0) 0 TOTAL SCORE: 721 Bonus ------- None Cogmind --------- Core Integrity 0/250 Matter 300/300 Energy 98/100 System Corruption 0% Temperature Cool (6) Movement Core (50) Location -10/Subcaves Parts ------- > --- POWER (1) -------- (None) > --- PROPULSION (2) --- (None) > --- UTILITY (2) ------ Signal Interpreter > --- WEAPON (2) ------- (None) > --- INVENTORY (5) ---- Ion Engine Light Nuclear Core Experimental Sensor Array Bore Cannon Rocket Launcher Peak State ------------ > --- POWER ------------ Ion Engine > --- PROPULSION ------- Flight Unit Flight Unit > --- UTILITY ---------- Heat Sink Signal Interpreter > --- WEAPON ----------- Beam Rifle Heavy Assault Rifle > --- INVENTORY -------- Aluminum Leg Experimental Sensor Array [Rating: 10] Favorites ----------- Power Light Ion Engine Engine Light Ion Engine Power Core Light Nuclear Core Propulsion Flight Unit Leg Aluminum Leg Flight Unit Flight Unit Utility Heat Sink Device Heat Sink Processor Signal Interpreter Weapon Medium Laser Energy Gun Medium Laser Ballistic Gun Heavy Assault Rifle Launcher Rocket Launcher Build | -11 -10 -10 -10 ------- Run | Yrd Mat Min Sub Slots Evolved . | . . . . Power . | . . . . Propulsion . | . . . . Utility . | . . . . Weapon . | . . . . Parts Attached 15 | 5 4 6 . Power 3 | 1 . 2 . Engine 2 | 1 . 1 . Core 1 | . . 1 . Reactor . | . . . . Propulsion 4 | 2 2 . . Treads . | . . . . Leg 2 | 2 . . . Wheel . | . . . . Hover . | . . . . Flight 2 | . 2 . . Utility 2 | . 2 . . Device 1 | . 1 . . Storage . | . . . . Processor 1 | . 1 . . Hackware . | . . . . Protection . | . . . . Artifact . | . . . . Weapon 6 | 2 . 4 . Energy Gun 4 | 2 . 2 . Energy Cannon . | . . . . Ballistic Gun 1 | . . 1 . Ballistic Cannon . | . . . . Launcher 1 | . . 1 . Special Weapon . | . . . . Impact Weapon . | . . . . Slashing Weapon . | . . . . Piercing Weapon . | . . . . Special Melee Weapon . | . . . . Unidentified Prototypes . | . . . . Parts Lost 7 | . 4 1 2 Power 1 | . 1 . . Propulsion 3 | . 1 1 1 Utility 1 | . . . 1 Weapon 2 | . 2 . . Highest Loss Streak 3 | . 3 1 2 To Critical Strikes . | . . . . Average Backups 3 | 1 2 3 5 Power 1 | . 1 1 2 Propulsion . | . . . . Utility . | . . . 1 Weapon 1 | . 1 . 2 Tool/Special . | . . . . Unused Backups 2 | . . . 2 Power . | . . . . Propulsion . | . . . . Utility 1 | . . . 1 Weapon 1 | . . . 1 Tool/Special . | . . . . Average Slot Usage (%) 58 | . 65 65 37 Engine 3 | . 9 3 . Leg 5 | . 25 . . Flight 16 | . 1 24 12 Device 12 | . 8 14 11 Processor 11 | . 2 14 14 Energy Gun 6 | . 18 4 . Ballistic Gun 2 | . . 4 . Peak Build Rating 10 | 5 6 10 5 Average Rating 5 | 4 4 5 4 On Entrance 3 | . 5 4 5 Naked Turns . | . . . . Heaviest Build 12 | 7 8 12 1 Greatest Support 20 | 20 20 8 4 Greatest Overweight (x) 1 | . . 1 . Average Overweight (x) . | . . . . Largest Inventory Capacity 5 | 5 5 5 5 Average Capacity 5 | 5 5 5 5 Most Carried 5 | 2 4 5 5 Average Carried 3 | 1 2 3 5 Final Capacity 5 | 5 5 5 5 Final Carried 5 | 2 3 5 5 Class Distribution -------------------- 85% | Mutant 14% | Scavenger-Mutant Dominant Class ---------------- Mutant | -10/Materials Mutant | -10/Mines Mutant | -10/Subcaves Resources | -11 -10 -10 -10 ----------- Run | Yrd Mat Min Sub Matter Collected 340 | 220 25 95 . Remotely . | . . . . Salvage Created 127 | . 36 91 . Parts 7 | . 3 4 . Haulers Intercepted . | . . . . Recyclers Shooed . | . . . . Parts Field Recycled . | . . . . Retrieved Matter . | . . . . Parts Self-Destructed . | . . . . Prevented . | . . . . Kills | -11 -10 -10 -10 ------- Run | Yrd Mat Min Sub Combat Hostiles Destroyed 4 | . 2 2 . Guns 4 | . 2 2 . Classes Destroyed 2 | . 1 1 . Swarmer 2 | . 2 . . Grunt 2 | . . 2 . Best Kill Streak 2 | . 2 2 . Combat Bots Only 2 | . 2 2 . Max Kills in Single Turn 1 | . 1 1 . Gunslinging . | . . . . Exploded . | . . . . Melee . | . . . . Uniques/NPCs Destroyed . | . . . . Combat | -11 -10 -10 -10 -------- Run | Yrd Mat Min Sub Hostile Shots Fired 102 | . 83 8 11 Missed 41 | . 33 3 5 Hits 61 | . 50 5 6 Projectile 61 | . 50 5 6 Damage Taken 727 | . 535 66 126 Core 256 | . 175 . 81 Absorbed by Shields . | . . . . Core Remaining (%) 100 | 100 . . . Volleys Fired 14 | . 6 8 . Largest 2 | . 2 2 . Hottest 90 | . 90 79 . Shots Fired 20 | . 7 13 . Gun 20 | . 7 13 . Cannon . | . . . . Launcher . | . . . . Special . | . . . . Kinetic 5 | . . 5 . Thermal 11 | . 6 5 . Explosive . | . . . . Electromagnetic 4 | . 1 3 . Robot Hit Streak 11 | . 3 11 . Robot Miss Streak 2 | . 2 2 . Penetration Max . | . . . . Secondary Targets . | . . . . Shots Hit Robots 14 | . 4 10 . Core Hits 8 | . 3 5 . Critical Kills . | . . . . Critical Parts Destroyed . | . . . . Critical Strikes . | . . . . Melee Attacks . | . . . . Impact . | . . . . Slashing . | . . . . Piercing . | . . . . Sneak Attacks . | . . . . Combat Hostiles . | . . . . Follow-up Attacks . | . . . . Damage Inflicted 185 | . 52 133 . Guns 183 | . 50 133 . Cannons . | . . . . Explosions . | . . . . Melee . | . . . . Ramming 2 | . 2 . . Kinetic 42 | . . 42 . Thermal 107 | . 50 57 . Explosive . | . . . . Electromagnetic 34 | . . 34 . Impact . | . . . . Slashing . | . . . . Piercing . | . . . . Highest Corruption . | . . . . Average Corruption . | . . . . Corruption Purged . | . . . . Corruption Blocked . | . . . . Overload Shots . | . . . . Overflow Damage . | . . . . Projectiles . | . . . . Explosions . | . . . . Melee . | . . . . Knockbacks . | . . . . Impact . | . . . . Kinetic . | . . . . Secondary . | . . . . Self-Inflicted Damage . | . . . . Shots . | . . . . Rammed . | . . . . Targets Rammed 1 | . 1 . . Kicked 1 | . 1 . . Crushed . | . . . . Highest Temperature 9 | . 5 9 . Average Temperature 4 | . 4 4 . Received Heat Transfer 264 | . 192 36 36 Siege Activations . | . . . . Martial Activations . | . . . . Shielding Activations . | . . . . Robots Disrupted . | . . . . Combat Hostiles . | . . . . Robots Corrupted . | . . . . Combat Hostiles . | . . . . Parts Fried . | . . . . Impact Corruptions . | . . . . Robots Melted . | . . . . Combat Hostiles . | . . . . Parts Melted . | . . . . Heat Transferred 296 | . 148 148 . Parts Sabotaged . | . . . . Parts Stolen . | . . . . Parts Stripped . | . . . . Power Chain Reactions . | . . . . Alert | -11 -10 -10 -10 ------- Run | Yrd Mat Min Sub Maximum Alert Level . | . . . . Low Security (%) 100 | 100 100 100 . Level 1 . | . . . . Level 2 . | . . . . Level 3 . | . . . . Level 4 . | . . . . Level 5 . | . . . . High Security . | . . . . Max Security . | . . . . Peak Influence 50 | . 50 50 . Initial 1 | . . 1 . Average 7 | . 4 8 . Influence Increases 171 | . 61 110 . Destroy 0b10 Robot/C 80 | . 40 40 . Destroy Leader 20 | . 10 10 . Successful Hack 11 | . 11 . . Lose Combat Pursuer 60 | . . 60 . Influence Decreases 171 | . 57 86 28 Entered New Map 19 | . . 3 16 Time Decay 132 | . 37 83 12 Lost Part 20 | . 20 . . Squads Dispatched 1 | . 1 . . Investigation . | . . . . Extermination . | . . . . Reinforcement 1 | . 1 . . Assault . | . . . . Garrison . | . . . . Intercept . | . . . . Searches Triggered . | . . . . Construction Impeded . | . . . . Haulers Reinforced . | . . . . Active Scanning Responses . | . . . . Cargo Convoy Interrupts . | . . . . Stealth | -11 -10 -10 -10 --------- Run | Yrd Mat Min Sub Distress Signals . | . . . . Communications Jammed . | . . . . Distress Signals . | . . . . Times Spotted 24 | . 12 7 5 Peak Tracking Total 8 | . 8 2 4 Tactical Retreats 4 | . . 3 1 Traps | -11 -10 -10 -10 ------- Run | Yrd Mat Min Sub Traps Triggered . | . . . . Indirectly . | . . . . Trap Hack Attempts . | . . . . Triggered . | . . . . Disarmed . | . . . . Reprogrammed . | . . . . Reused . | . . . . Traps Extracted . | . . . . Installed . | . . . . Triggered . | . . . . Machines | -11 -10 -10 -10 ---------- Run | Yrd Mat Min Sub Machines Disabled . | . . . . Max in Single Turn . | . . . . Machines Repaired . | . . . . Machines Dismantled . | . . . . Machines Sabotaged . | . . . . Overloaded Fab Kills . | . . . . Hacking | -11 -10 -10 -10 --------- Run | Yrd Mat Min Sub Machines Accessed 3 | . 3 . . Terminals 3 | . 3 . . Fabricators . | . . . . Repair Stations . | . . . . Recycling Units . | . . . . Scanalyzers . | . . . . Garrison Access . | . . . . Total Hacks 6 | . 6 . . Successful 4 | . 4 . . Failed 2 | . 2 . . Catastrophic . | . . . . Database Lockouts . | . . . . Manual 6 | . 6 . . Terminals 6 | . 6 . . Fabricators . | . . . . Repair Stations . | . . . . Recycling Units . | . . . . Scanalyzers . | . . . . Garrison Access . | . . . . Terminal Hacks 2 | . 2 . . Unreport Threat 1 | . 1 . . Recall Investigation 1 | . 1 . . Fabricator Hacks . | . . . . Repair Station Hacks . | . . . . Recycling Unit Hacks . | . . . . Scanalyzer . | . . . . Garrison Access Hacks . | . . . . Unauthorized Hacks 2 | . 2 . . Terminals 2 | . 2 . . Botnet 2 | . 2 . . Fabricators . | . . . . Repair Stations . | . . . . Recycling Units . | . . . . Scanalyzers . | . . . . Garrison Access . | . . . . Data Cores Recovered . | . . . . Used . | . . . . Hacking Detections 1 | . 1 . . Full Trace Events . | . . . . Feedback Events . | . . . . Feedback Blocked . | . . . . Robot Schematics Acquired . | . . . . Robots Built . | . . . . Authchips . | . . . . Time . | . . . . Total Robot Build Rating . | . . . . Part Schematics Acquired . | . . . . Parts Built . | . . . . Authchips . | . . . . Time . | . . . . Total Part Build Rating . | . . . . Parts Repaired . | . . . . Time . | . . . . Parts Recycled . | . . . . Recycled Matter . | . . . . Retrieved Matter . | . . . . Retrieved Components . | . . . . Parts Scanalyzed . | . . . . Part Schematics Acquired . | . . . . Parts Damaged . | . . . . Bothacking | -11 -10 -10 -10 ------------ Run | Yrd Mat Min Sub Used RIF Installer . | . . . . Robots Hacked . | . . . . Non-combat . | . . . . Combat . | . . . . Robot Hacks Applied . | . . . . Relay Couplers Released . | . . . . Fabnet Peak Effective % . | . . . . Robots Rewired . | . . . . Allies Hacked . | . . . . Hacks Repelled . | . . . . Allies | -11 -10 -10 -10 -------- Run | Yrd Mat Min Sub Total Allies . | . . . . Largest Group . | . . . . Highest-Rated Group . | . . . . Highest-Rated Ally . | . . . . Total Orders . | . . . . Ally Attacks . | . . . . Total Damage . | . . . . Kills . | . . . . Allies Corrupted . | . . . . Allies Melted . | . . . . Intel | -11 -10 -10 -10 ------- Run | Yrd Mat Min Sub Active Infowar (turns) . | . . . . Robot Analysis Total . | . . . . Derelict Logs Recovered 2 | . . 1 1 Drone Launches . | . . . . Drone Recoveries . | . . . . Exploration | -11 -10 -10 -10 ------------- Run | Yrd Mat Min Sub Turns Passed 904 | 54 185 468 197 Spaces Moved 1163 | 41 150 610 362 Core 57 | 5 . . 52 Treads . | . . . . Legs 166 | 36 130 . . Wheels . | . . . . Hover . | . . . . Flight 940 | . 20 610 310 Fastest Speed 37 | 50 37 37 40 Average Speed 56 | 111 108 49 41 Slowest Speed 120 | 120 120 117 50 Overloaded Moves . | . . . . Propulsion Burnouts . | . . . . Robots Hopped 2 | . . 1 1 Potential Cave-ins . | . . . . Cave-ins Triggered . | . . . . Exploration Rate (%) 45 | 4 55 95 29 Regions Visited 3 Branch Regions 2 Pre-discovered Areas . | . . . . Known Exits Taken 2 | . 1 1 . Unknown Exits Taken 1 | 1 . . . Scrap Searched 3 | . . 1 2 Spaces Dug . | . . . . Terrain Destroyed . | . . . . Melee . | . . . . Projectile . | . . . . AOE . | . . . . Terrain Rammed . | . . . . Walls Destroyed . | . . . . Machines Disabled . | . . . . Actions | -11 -10 -10 -10 --------- Run | Yrd Mat Min Sub Total 1379 | 47 162 762 408 Wait 178 | . . 131 47 Move 1156 | 40 149 607 360 Hop 2 | . . 1 1 Pick Up 7 | 2 2 3 . Fast Attach 10 | 5 2 3 . Attach 3 | . 1 2 . Detach 2 | . . 2 . Swap 2 | . 1 1 . Drop 4 | . . 4 . Fire 14 | . 6 8 . Melee . | . . . . Ram . | . . . . Kick 1 | . 1 . . Crush . | . . . . Escape Stasis . | . . . . Rewire . | . . . . Trap . | . . . . Miscellaneous . | . . . . Route ------- -11/Scrapyard -10/Materials -10/Mines (discovered 2 exits: *Mat / *Sub) -10/Subcaves History --------- Turn | Location | Event 5 | -11/Scrapyard | Discovered new exit (range 16) 55 | -11/Scrapyard | Entered Materials 211 | -10/Materials | Lost 3 parts (1p2w) 229 | -10/Materials | Core integrity fell below 50% 237 | -10/Materials | Discovered new exit (range 9) 240 | -10/Materials | Identified exit to Mines 240 | -10/Materials | Entered Mines 310 | -10/Mines | Build established: Mutant 398 | -10/Mines | Found a damaged Exp. Sensor Array with a note attached 398 | -10/Mines | Found Prototype Device 433 | -10/Mines | Found a hidden stash of uninstalled traps 450 | -10/Mines | Joined a pair of Derelicts in attacking an 0b10 outpost 525 | -10/Mines | A weapon hastily lodged in a ceiling crevice suddenly fell to the ground 549 | -10/Mines | Learned Materials garrison access intel 680 | -10/Mines | Received a Rocket Launcher from a helpful Derelict 686 | -10/Mines | Discovered new exit (range 9) 690 | -10/Mines | Identified exit to Subcaves 697 | -10/Mines | Discovered new exit (range 8) 700 | -10/Mines | Identified exit to Materials 708 | -10/Mines | Entered Subcaves 709 | -10/Subcaves | Approached by a straggling Scientist 710 | -10/Subcaves | Learned Materials trap positions 878 | -10/Subcaves | Core integrity fell below 20% 898 | -10/Subcaves | Ambushed by Subdwellers from Twisted Machinery 905 | -10/Subcaves | Destroyed by ET-R8A(R) with Subdweller Laser Last Messages --------------- all the Subs lurking out here." Acquired derelict log, extracted data. Data stored: Materials trap records. Q4-LHM(c): "Hey, let me tag along and I can get us both out of this nasty situation. At least I think I can... The group I got separated from was talking about a shortcut back to the UFD." Q4-LHM(c): "I think it's somewhere southwest of here" BX-04E(u) builds Twisted Machinery. Searching scrap... Found Sub. Laser. Found Mak. Shrapnel Gun. Found 53 Matter. Searching scrap... Found Sub. Beam Cannon. Found 57 Matter. Heat Sink destroyed. Flight Unit destroyed. Map ----- +----------------------------------------------------+ | ?????????????## #????????????????????????????? | | ??????????????# #????????????????????????????? | | ??????????????# ##????????????????????????????? | | ??????????????## ##?????????????????????????????? | | ???????????????# #??????????????????????????????? | | ???????????????# ##?????????????????????????????? | | ??????????????## #?????????????????????????????? | | ??????????????# ##?????????????????????????????? | | ??????????????## #?????????????????????????????? | | ???????????????# ##?????????????????##??????????? | | ???????????????# #??????????????????"#??????????? | | ??????????????## #?????????????????# #??????????? | | ??????????????# #????????????????? ???????????? | | ??????????????## ##??????###???###? ###?????????? | | ???????????????# #?????## ###?# ## # ###???????? | | ??????????????## #####??# ### " " ##??????? | | ??????????????# ##??# ## #??????? | | ?????????????## #??# #???????? | | ???????????### R #?## #?????????? | | ???????????# ### #?????????? | | ???????????## R## #?????????? | | ????????????## ##?????????? | | ?????????????# ### ##?###??????? | | ?????????????## ## #?## ### ##?????? | | ??????????????# ### ##?## #?????? | | ??????????????# #?# @ #??## #?????? | | ?????????????? ??# #???## ###?????? | | ?????????????## ??## ##????# #???????? | | ??????????????####???# ##???### ##???????? | | ?????????????????????# ####????# ##????????? | | ?????????????????????# ??????# ##?????????? | | ????????????????????? ??????### #??????????? | | ???????????????????? # ##???????## ??????????? | | ???????????????????# # ?????????# #?????????? | | ???????????????????#? ????????? ?????????? | | ????????????????????? ?????????"""""" ????????? | | ???????????????????? # ???????? """""""????????? | | ????????????????????# ? ???????? "#???????? | | ?????????????????????# ? ??????? ####????????? | | ??????????????????????#?????????#####????????????? | | ?????????????????????????????????????????????????? | | ?????????????????????????????????????????????????? | | ?????????????????????????????????????????????????? | | ?????????????????????????????????????????????????? | | ?????????????????????????????????????????????????? | | ?????????????????????????????????????????????????? | | ?????????????????????????????????????????????????? | | ?????????????????????????????????????????????????? | | ?????????????????????????????????????????????????? | | ?????????????????????????????????????????????????? | +----------------------------------------------------+ Best States ------------- Heat Dissipation 35 Energy Generation 10 Energy Capacity 250 Matter Stores 300 Matter Capacity 300 Sight Range 16 Terrain Scan Density 10 Evasion (%) 62 Item Schematics ----------------- None Robot Schematics ------------------ None Fabricated ------------ Nothing Repaired ---------- Nothing Alien Tech Used ----------------- None Achievements -------------- None Challenges ------------ None Game ------ Seed MediumGrapheneReconfigurator Manual? 0 Play Time 00:11:20 Cumulative 24.0 hours Start 2025.08.29 @ 14:05:32 End 2025.08.29 @ 14:15:14 Sessions 1 Manual Loads 0 Difficulty Rogue Special Mode None Game No. 27 Rogue 27 Adventurer 0 Explorer 0 Win Type - Total 0 Types 0/0/0/0/0/0/0/0/0/0 Lore% 32 Gallery% 29 Achievement% 32 Wizard Run 0 Options --------- Layout 1 ASCII 0 Keyboard 0 Movement Mouse Keybinds 0 Fullscreen 1 Font 32/SmallcapsGlow Map View 50x35 Zoom Use 0% Tactical HUD 0 Map Filters NONE Filters NONE Steam 1 RUN: da51f5f6-54d2-4f0f-afe1-35dfdfee0029